[Event "Late-Titled-Tuesday-Blitz-February-20-2024"]
[Site "Chess.com"]
[Date "2024.02.20"]
[Round "7"]
[White "MrKGG1"]
[Black "Abund"]
[Result "1/2-1/2"]
[WhiteElo "2598"]
[BlackElo "2784"]
[TimeControl "180+1"]
[EndTime "15:20:27 PST"]
[Termination "Game drawn by repetition"]

1. e4 {[%clk 0:03:00.9]} 1... c6 {[%clk 0:02:59.9]} 2. d3 {[%clk 0:02:52.4]}
2... d5 {[%clk 0:03:00.8]} 3. Nd2 {[%clk 0:02:51.9]} 3... e5 {[%clk 0:03:00.7]}
4. Ngf3 {[%clk 0:02:50.8]} 4... Bd6 {[%clk 0:02:59.4]} 5. g3 {[%clk 0:02:51]}
5... Nf6 {[%clk 0:02:59.2]} 6. Bg2 {[%clk 0:02:51.4]} 6... O-O {[%clk
0:02:58.7]} 7. O-O {[%clk 0:02:51.9]} 7... Re8 {[%clk 0:02:59.4]} 8. Qe2 {[%clk
0:02:47.1]} 8... Nbd7 {[%clk 0:02:57.4]} 9. b3 {[%clk 0:02:47.3]} 9... a5 {[%clk
0:02:57.3]} 10. a4 {[%clk 0:02:47.2]} 10... Nf8 {[%clk 0:02:52.7]} 11. Bb2
{[%clk 0:02:45.1]} 11... Ng6 {[%clk 0:02:52.9]} 12. Rfe1 {[%clk 0:02:39.5]}
12... h6 {[%clk 0:02:51]} 13. Rad1 {[%clk 0:01:58.6]} 13... Bb4 {[%clk
0:02:36.3]} 14. c3 {[%clk 0:01:57.5]} 14... Bd6 {[%clk 0:02:36.7]} 15. Nf1
{[%clk 0:01:47.1]} 15... Qb6 {[%clk 0:02:34]} 16. Qc2 {[%clk 0:01:43.3]} 16...
Be6 {[%clk 0:02:34.2]} 17. N3d2 {[%clk 0:01:38.8]} 17... Bc5 {[%clk 0:02:16.2]}
18. Re2 {[%clk 0:01:25.2]} 18... Ng4 {[%clk 0:01:44.9]} 19. d4 {[%clk
0:01:03.6]} 19... exd4 {[%clk 0:01:42.4]} 20. cxd4 {[%clk 0:00:46.5]} 20... Bxd4
{[%clk 0:01:42.7]} 21. Bxd4 {[%clk 0:00:38.4]} 21... Qxd4 {[%clk 0:01:43.6]} 22.
h3 {[%clk 0:00:37]} 22... Nf6 {[%clk 0:01:34.1]} 23. Nf3 {[%clk 0:00:33.4]}
23... Qb6 {[%clk 0:01:26.6]} 24. e5 {[%clk 0:00:33.7]} 24... Nd7 {[%clk
0:01:19.6]} 25. Nd4 {[%clk 0:00:30.4]} 25... Ngxe5 {[%clk 0:00:34.5]} 26. f4
{[%clk 0:00:27.8]} 26... Ng6 {[%clk 0:00:35]} 27. Kh2 {[%clk 0:00:27.4]} 27...
Ne7 {[%clk 0:00:17.2]} 28. f5 {[%clk 0:00:20.7]} 28... Nxf5 {[%clk 0:00:16.6]}
29. Nxf5 {[%clk 0:00:20.9]} 29... Bxf5 {[%clk 0:00:17.2]} 30. Rxe8+ {[%clk
0:00:21.5]} 30... Rxe8 {[%clk 0:00:17.8]} 31. Qxf5 {[%clk 0:00:22.3]} 31... Nf6
{[%clk 0:00:17.4]} 32. Qd3 {[%clk 0:00:21.7]} 32... Nd7 {[%clk 0:00:13.5]} 33.
Nd2 {[%clk 0:00:21.6]} 33... Nc5 {[%clk 0:00:13.6]} 34. Qd4 {[%clk 0:00:22]}
34... Re2 {[%clk 0:00:09.4]} 35. Kh1 {[%clk 0:00:18.9]} 35... Qb4 {[%clk
0:00:07.3]} 36. Qxb4 {[%clk 0:00:08.3]} 36... axb4 {[%clk 0:00:08.2]} 37. Kg1
{[%clk 0:00:06]} 37... Re3 {[%clk 0:00:07.1]} 38. Rb1 {[%clk 0:00:05.1]} 38...
Rxg3 {[%clk 0:00:06.6]} 39. Kf2 {[%clk 0:00:05.7]} 39... Rd3 {[%clk 0:00:06.6]}
40. Ke2 {[%clk 0:00:05.5]} 40... Rg3 {[%clk 0:00:06.8]} 41. Bf1 {[%clk
0:00:05.8]} 41... Rc3 {[%clk 0:00:06.4]} 42. Kd1 {[%clk 0:00:04.6]} 42... Rg3
{[%clk 0:00:04]} 43. Rc1 {[%clk 0:00:04.2]} 43... Nxb3 {[%clk 0:00:03.9]} 44.
Nxb3 {[%clk 0:00:03.7]} 44... Rxb3 {[%clk 0:00:04.8]} 45. a5 {[%clk 0:00:02.9]}
45... Ra3 {[%clk 0:00:04.8]} 46. a6 {[%clk 0:00:02.9]} 46... bxa6 {[%clk
0:00:04.6]} 47. Rxc6 {[%clk 0:00:03.6]} 47... a5 {[%clk 0:00:04.5]} 48. Be2
{[%clk 0:00:03.1]} 48... g6 {[%clk 0:00:04.3]} 49. Rc5 {[%clk 0:00:03.1]} 49...
d4 {[%clk 0:00:04.6]} 50. Rd5 {[%clk 0:00:03.6]} 50... Rxh3 {[%clk 0:00:04.6]}
51. Rxd4 {[%clk 0:00:04.2]} 51... b3 {[%clk 0:00:04.4]} 52. Rd8+ {[%clk
0:00:03.7]} 52... Kg7 {[%clk 0:00:04.5]} 53. Rb8 {[%clk 0:00:04.3]} 53... a4
{[%clk 0:00:04.8]} 54. Kc1 {[%clk 0:00:04.9]} 54... Rh1+ {[%clk 0:00:04.6]} 55.
Kb2 {[%clk 0:00:05.1]} 55... Rh2 {[%clk 0:00:05.5]} 56. Re8 {[%clk 0:00:05.1]}
56... h5 {[%clk 0:00:05.8]} 57. Ka3 {[%clk 0:00:05.6]} 57... Rh4 {[%clk
0:00:05.8]} 58. Bb5 {[%clk 0:00:04.5]} 58... Rf4 {[%clk 0:00:05.2]} 59. Bxa4
{[%clk 0:00:04.4]} 59... h4 {[%clk 0:00:05.4]} 60. Bxb3 {[%clk 0:00:04.8]} 60...
h3 {[%clk 0:00:05.9]} 61. Re3 {[%clk 0:00:04.8]} 61... Rh4 {[%clk 0:00:05.6]}
62. Bd5 {[%clk 0:00:03.7]} 62... h2 {[%clk 0:00:05.9]} 63. Re1 {[%clk 0:00:04]}
63... Rg4 {[%clk 0:00:05.3]} 64. Re2 {[%clk 0:00:02.5]} 64... Rh4 {[%clk
0:00:04.9]} 65. Bh1 {[%clk 0:00:02.8]} 65... f5 {[%clk 0:00:04.6]} 66. Kb3
{[%clk 0:00:02.9]} 66... g5 {[%clk 0:00:04.6]} 67. Kc3 {[%clk 0:00:03.6]} 67...
Kf6 {[%clk 0:00:04.9]} 68. Kd3 {[%clk 0:00:04.2]} 68... g4 {[%clk 0:00:05.3]}
69. Ke3 {[%clk 0:00:04.4]} 69... Kg5 {[%clk 0:00:05.7]} 70. Ra2 {[%clk
0:00:02.8]} 70... Rh3+ {[%clk 0:00:05.3]} 71. Kf2 {[%clk 0:00:02.9]} 71... Rc3
{[%clk 0:00:05]} 72. Kg2 {[%clk 0:00:03.3]} 72... g3 {[%clk 0:00:05.2]} 73. Ra8
{[%clk 0:00:02.2]} 73... Kf4 {[%clk 0:00:05]} 74. Ra4+ {[%clk 0:00:02.2]} 74...
Kg5 {[%clk 0:00:05.4]} 75. Ra8 {[%clk 0:00:02.5]} 75... f4 {[%clk 0:00:05.7]}
76. Rg8+ {[%clk 0:00:02.5]} 76... Kf5 {[%clk 0:00:05.7]} 77. Rf8+ {[%clk
0:00:02.8]} 77... Ke5 {[%clk 0:00:06.1]} 78. Re8+ {[%clk 0:00:03.2]} 78... Kd4
{[%clk 0:00:06.3]} 79. Rf8 {[%clk 0:00:03.8]} 79... Ke3 {[%clk 0:00:02.5]} 80.
Re8+ {[%clk 0:00:03.9]} 80... Kd2 {[%clk 0:00:02.9]} 81. Rf8 {[%clk 0:00:03.6]}
81... Ke3 {[%clk 0:00:02.7]} 82. Re8+ {[%clk 0:00:04.1]} 82... Kd2 {[%clk
0:00:03.2]} 83. Rf8 {[%clk 0:00:04.6]} 83... Rc4 {[%clk 0:00:03.9]} 84. Rd8+
{[%clk 0:00:04.5]} 84... Ke3 {[%clk 0:00:04.2]} 85. Re8+ {[%clk 0:00:05.1]}
85... Re4 {[%clk 0:00:04.3]} 86. Ra8 {[%clk 0:00:03.7]} 86... Re5 {[%clk
0:00:04.3]} 87. Ra3+ {[%clk 0:00:03.5]} 87... Kd2 {[%clk 0:00:04.9]} 88. Ra2+
{[%clk 0:00:03.7]} 88... Kd3 {[%clk 0:00:04.9]} 89. Ra3+ {[%clk 0:00:04.2]}
89... Kc2 {[%clk 0:00:05.1]} 90. Ra4 {[%clk 0:00:04.5]} 90... Re1 {[%clk
0:00:04.7]} 91. Rxf4 {[%clk 0:00:04.1]} 91... Rg1+ {[%clk 0:00:04.7]} 92. Kh3
{[%clk 0:00:04.6]} 92... Rxh1 {[%clk 0:00:05.1]} 93. Kxg3 {[%clk 0:00:04.6]}
93... Kd3 {[%clk 0:00:05.4]} 94. Rf2 {[%clk 0:00:04]} 94... Ke3 {[%clk
0:00:05.5]} 95. Rxh2 {[%clk 0:00:03.4]} 95... Rg1+ {[%clk 0:00:05.9]} 96. Rg2
{[%clk 0:00:03.9]} 96... Ra1 {[%clk 0:00:06.8]} 97. Kh3 {[%clk 0:00:03.7]} 97...
Ra8 {[%clk 0:00:07.3]} 98. Rg7 {[%clk 0:00:03.8]} 98... Kf3 {[%clk 0:00:07.6]}
99. Kh2 {[%clk 0:00:03.4]} 99... Rf8 {[%clk 0:00:06.7]} 100. Kg1 {[%clk
0:00:02.7]} 100... Rf6 {[%clk 0:00:06.4]} 101. Ra7 {[%clk 0:00:02.3]} 101... Kg3
{[%clk 0:00:06.3]} 102. Ra3+ {[%clk 0:00:02]} 102... Kg4 {[%clk 0:00:06.9]} 103.
Ra4+ {[%clk 0:00:02.5]} 103... Kf3 {[%clk 0:00:07.2]} 104. Ra3+ {[%clk
0:00:03.1]} 104... Ke4 {[%clk 0:00:07.8]} 105. Ra4+ {[%clk 0:00:03.8]} 105...
Kf5 {[%clk 0:00:08.3]} 106. Ra5+ {[%clk 0:00:04.4]} 106... Kg6 {[%clk 0:00:09]}
107. Ra4 {[%clk 0:00:05]} 107... Rf5 {[%clk 0:00:09.6]} 108. Ra6+ {[%clk
0:00:05.3]} 108... Kg5 {[%clk 0:00:10]} 109. Ra2 {[%clk 0:00:06.2]} 109... Rf3
{[%clk 0:00:10.3]} 110. Rg2+ {[%clk 0:00:06.7]} 110... Kh4 {[%clk 0:00:10.9]}
111. Ra2 {[%clk 0:00:07.6]} 111... Kg3 {[%clk 0:00:10.8]} 112. Rb2 {[%clk
0:00:07.8]} 112... Ra3 {[%clk 0:00:10.9]} 113. Rb1 {[%clk 0:00:08.1]} 113... Kf3
{[%clk 0:00:10.9]} 114. Rc1 {[%clk 0:00:08.4]} 114... Kg3 {[%clk 0:00:11.2]}
115. Rf1 {[%clk 0:00:08.7]} 115... Rd3 {[%clk 0:00:11.4]} 116. Re1 {[%clk
0:00:08.9]} 116... Rb3 {[%clk 0:00:11.4]} 117. Rc1 {[%clk 0:00:09.4]} 117... Ra3
{[%clk 0:00:11.5]} 118. Rd1 {[%clk 0:00:10]} 118... Rc3 {[%clk 0:00:10.8]} 119.
Rb1 {[%clk 0:00:09.7]} 119... Rd3 {[%clk 0:00:11]} 120. Rc1 {[%clk 0:00:09.9]}
120... Rb3 {[%clk 0:00:11.4]} 121. Rd1 {[%clk 0:00:10.3]} 121... Rc3 {[%clk
0:00:12]} 122. Re1 {[%clk 0:00:10.5]} 122... Ra3 {[%clk 0:00:12.6]} 123. Rb1
{[%clk 0:00:11]} 123... Rd3 {[%clk 0:00:13.2]} 124. Rc1 {[%clk 0:00:11.5]}
124... Ra3 {[%clk 0:00:13.7]} 1/2-1/2

[Event "Late-Titled-Tuesday-Blitz-February-20-2024"]
[Site "Chess.com"]
[Date "2024.02.20"]
[Round "8"]
[White "HalfIsCrayfish"]
[Black "GoltsevDmitry2000"]
[Result "0-1"]
[WhiteElo "2536"]
[BlackElo "2766"]
[TimeControl "180+1"]
[EndTime "15:21:37 PST"]
[Termination "GoltsevDmitry2000 won by resignation"]

1. e4 {[%clk 0:03:00.2]} 1... e6 {[%clk 0:02:58.3]} 2. Nc3 {[%clk 0:03:00.5]}
2... d5 {[%clk 0:02:59.2]} 3. exd5 {[%clk 0:03:01.1]} 3... exd5 {[%clk
0:02:59.2]} 4. d4 {[%clk 0:03:01.8]} 4... Nf6 {[%clk 0:02:59.8]} 5. Bd3 {[%clk
0:03:02.4]} 5... c5 {[%clk 0:03:00.4]} 6. dxc5 {[%clk 0:03:01.1]} 6... Bxc5
{[%clk 0:03:00]} 7. Nf3 {[%clk 0:02:53.7]} 7... O-O {[%clk 0:02:58.1]} 8. O-O
{[%clk 0:02:53.3]} 8... Nc6 {[%clk 0:02:58.3]} 9. h3 {[%clk 0:02:50.9]} 9... Qd6
{[%clk 0:02:56.7]} 10. Bg5 {[%clk 0:02:45.9]} 10... h6 {[%clk 0:02:56.8]} 11.
Bh4 {[%clk 0:02:44.3]} 11... g5 {[%clk 0:02:56.9]} 12. Bg3 {[%clk 0:02:44.3]}
12... Qxg3 {[%clk 0:02:56.7]} 0-1

[Event "Late-Titled-Tuesday-Blitz-February-20-2024"]
[Site "Chess.com"]
[Date "2024.02.20"]
[Round "8"]
[White "Oleksandr_Bortnyk"]
[Black "MKlose11"]
[Result "1-0"]
[WhiteElo "3059"]
[BlackElo "2619"]
[TimeControl "180+1"]
[EndTime "15:22:59 PST"]
[Termination "Oleksandr_Bortnyk won by checkmate"]

1. e4 {[%clk 0:03:00.9]} 1... e6 {[%clk 0:03:00.1]} 2. d4 {[%clk 0:03:00.3]}
2... d5 {[%clk 0:03:00.5]} 3. Nc3 {[%clk 0:03:00.8]} 3... Bb4 {[%clk 0:03:00.3]}
4. Qd3 {[%clk 0:03:00.5]} 4... Ne7 {[%clk 0:02:57.7]} 5. e5 {[%clk 0:02:56.4]}
5... c5 {[%clk 0:02:55.3]} 6. a3 {[%clk 0:02:56.5]} 6... Ba5 {[%clk 0:02:41.2]}
7. dxc5 {[%clk 0:02:55.7]} 7... Bxc3+ {[%clk 0:02:39.3]} 8. Qxc3 {[%clk
0:02:56.6]} 8... a5 {[%clk 0:02:34.6]} 9. Nf3 {[%clk 0:02:52.6]} 9... O-O {[%clk
0:02:33.7]} 10. Bd3 {[%clk 0:02:52.3]} 10... Nbc6 {[%clk 0:02:33.6]} 11. Bxh7+
{[%clk 0:02:46.3]} 11... Kxh7 {[%clk 0:02:16]} 12. Ng5+ {[%clk 0:02:47]} 12...
Kg8 {[%clk 0:02:01.7]} 13. Qh3 {[%clk 0:02:44]} 13... Re8 {[%clk 0:02:02]} 14.
Qh7+ {[%clk 0:02:27.7]} 14... Kf8 {[%clk 0:02:00.8]} 15. Qh8+ {[%clk 0:02:28.6]}
15... Ng8 {[%clk 0:02:00.3]} 16. Nh7+ {[%clk 0:02:29.5]} 16... Ke7 {[%clk
0:01:59.2]} 17. Bg5+ {[%clk 0:02:30.4]} 17... f6 {[%clk 0:01:59.4]} 18. Qxg7#
{[%clk 0:02:30.5]} 1-0

[Event "Late-Titled-Tuesday-Blitz-February-20-2024"]
[Site "Chess.com"]
[Date "2024.02.20"]
[Round "8"]
[White "miraitrunks"]
[Black "Bala-Afiada"]
[Result "1-0"]
[WhiteElo "2197"]
[BlackElo "1959"]
[TimeControl "180+1"]
[EndTime "15:23:52 PST"]
[Termination "miraitrunks won by resignation"]

1. d4 {[%clk 0:03:00.9]} 1... Nf6 {[%clk 0:02:55]} 2. c4 {[%clk 0:03:00.9]} 2...
e6 {[%clk 0:02:55.5]} 3. Nf3 {[%clk 0:03:00.6]} 3... d5 {[%clk 0:02:55.8]} 4.
Nc3 {[%clk 0:02:58.5]} 4... c6 {[%clk 0:02:56.2]} 5. cxd5 {[%clk 0:02:58]} 5...
exd5 {[%clk 0:02:56.3]} 6. Bg5 {[%clk 0:02:58.7]} 6... Be7 {[%clk 0:02:56.2]} 7.
e3 {[%clk 0:02:59.2]} 7... O-O {[%clk 0:02:53.2]} 8. Bd3 {[%clk 0:02:59.8]} 8...
Nbd7 {[%clk 0:02:45]} 9. O-O {[%clk 0:02:59.4]} 9... h6 {[%clk 0:02:44.5]} 10.
Bh4 {[%clk 0:02:59.4]} 10... Re8 {[%clk 0:02:44.5]} 11. Rb1 {[%clk 0:02:57.2]}
11... Nf8 {[%clk 0:02:44.7]} 12. b4 {[%clk 0:02:56.9]} 12... Ne6 {[%clk
0:02:44.3]} 13. b5 {[%clk 0:02:55.6]} 13... Nh5 {[%clk 0:02:41.7]} 14. Bxe7
{[%clk 0:02:54.8]} 14... Qxe7 {[%clk 0:02:42.6]} 15. bxc6 {[%clk 0:02:55.3]}
15... bxc6 {[%clk 0:02:42.7]} 16. Qa4 {[%clk 0:02:55.7]} 16... Bd7 {[%clk
0:02:40]} 17. Rfc1 {[%clk 0:02:54.1]} 17... c5 {[%clk 0:02:22.9]} 18. Qa3 {[%clk
0:02:53.3]} 18... c4 {[%clk 0:01:59.9]} 19. Qxe7 {[%clk 0:02:50.3]} 19... Rxe7
{[%clk 0:02:00.4]} 20. Nxd5 {[%clk 0:02:50.6]} 20... Ree8 {[%clk 0:01:58.4]} 21.
Bxc4 {[%clk 0:02:50.2]} 21... Rac8 {[%clk 0:01:36.3]} 22. Bb3 {[%clk 0:02:45.2]}
22... Bb5 {[%clk 0:01:27.7]} 23. g4 {[%clk 0:02:43]} 23... Nf6 {[%clk
0:01:25.8]} 24. Nxf6+ {[%clk 0:02:43.1]} 24... gxf6 {[%clk 0:01:25.8]} 25. Rxc8
{[%clk 0:02:40.7]} 25... Rxc8 {[%clk 0:01:24.9]} 26. Bxe6 {[%clk 0:02:40.8]}
26... Bd3 {[%clk 0:01:24.4]} 27. Bxc8 {[%clk 0:02:40.4]} 27... Bxb1 {[%clk
0:01:24.6]} 28. a3 {[%clk 0:02:38.9]} 1-0

[Event "Late-Titled-Tuesday-Blitz-February-20-2024"]
[Site "Chess.com"]
[Date "2024.02.20"]
[Round "8"]
[White "mirciulica14"]
[Black "SHIVACalypso"]
[Result "1-0"]
[WhiteElo "2655"]
[BlackElo "2498"]
[TimeControl "180+1"]
[EndTime "15:24:42 PST"]
[Termination "mirciulica14 won by resignation"]

1. Nf3 {[%clk 0:03:00.9]} 1... Nf6 {[%clk 0:02:51.8]} 2. b3 {[%clk 0:02:59.6]}
2... g6 {[%clk 0:02:45.8]} 3. Bb2 {[%clk 0:02:59.1]} 3... Bg7 {[%clk 0:02:46.7]}
4. g3 {[%clk 0:02:59.1]} 4... O-O {[%clk 0:02:47.2]} 5. Bg2 {[%clk 0:02:59.1]}
5... d5 {[%clk 0:02:46]} 6. c4 {[%clk 0:02:58.8]} 6... c6 {[%clk 0:02:44.3]} 7.
O-O {[%clk 0:02:58]} 7... Re8 {[%clk 0:02:44.2]} 8. d3 {[%clk 0:02:30.2]} 8...
Nbd7 {[%clk 0:02:37.6]} 9. Nbd2 {[%clk 0:02:27.2]} 9... e5 {[%clk 0:02:38]} 10.
cxd5 {[%clk 0:02:19.3]} 10... cxd5 {[%clk 0:02:38.9]} 11. e4 {[%clk 0:02:19.3]}
11... d4 {[%clk 0:02:22]} 12. Nc4 {[%clk 0:02:04.4]} 12... Nc5 {[%clk 0:02:21]}
13. b4 {[%clk 0:01:56.2]} 13... b5 {[%clk 0:02:11.1]} 14. Ncxe5 {[%clk
0:01:45.5]} 14... Na4 {[%clk 0:02:03.4]} 15. Bxd4 {[%clk 0:01:45.3]} 15... Bb7
{[%clk 0:01:48.5]} 16. Rc1 {[%clk 0:01:34.9]} 16... a5 {[%clk 0:01:47.1]} 17.
bxa5 {[%clk 0:01:21.3]} 17... Qxa5 {[%clk 0:01:45]} 18. Nc6 {[%clk 0:01:13.1]}
18... Bxc6 {[%clk 0:01:44.3]} 19. Rxc6 {[%clk 0:01:13.9]} 19... Rad8 {[%clk
0:01:43.7]} 20. Bxf6 {[%clk 0:01:12.6]} 1-0

[Event "Late-Titled-Tuesday-Blitz-February-20-2024"]
[Site "Chess.com"]
[Date "2024.02.20"]
[Round "8"]
[White "Sanyura"]
[Black "Grischuk"]
[Result "0-1"]
[WhiteElo "2615"]
[BlackElo "3049"]
[TimeControl "180+1"]
[EndTime "15:24:52 PST"]
[Termination "Grischuk won by resignation"]

1. e4 {[%clk 0:03:00.9]} 1... c5 {[%clk 0:03:00.1]} 2. Nf3 {[%clk 0:03:01]} 2...
d6 {[%clk 0:03:00.6]} 3. d4 {[%clk 0:03:01.4]} 3... cxd4 {[%clk 0:03:01.5]} 4.
Nxd4 {[%clk 0:03:02.3]} 4... Nf6 {[%clk 0:03:02]} 5. Nc3 {[%clk 0:03:02.9]} 5...
a6 {[%clk 0:03:02.7]} 6. g3 {[%clk 0:03:03]} 6... e5 {[%clk 0:03:02.5]} 7. Nb3
{[%clk 0:03:03.4]} 7... Be7 {[%clk 0:03:02.7]} 8. Bg2 {[%clk 0:03:03.9]} 8...
O-O {[%clk 0:02:59.1]} 9. O-O {[%clk 0:03:04.2]} 9... b5 {[%clk 0:02:58]} 10. a4
{[%clk 0:03:03.3]} 10... b4 {[%clk 0:02:58]} 11. Nd5 {[%clk 0:03:04]} 11... Nxd5
{[%clk 0:02:57.6]} 12. exd5 {[%clk 0:03:04.9]} 12... a5 {[%clk 0:02:50.3]} 13.
Bd2 {[%clk 0:03:05.1]} 13... Bg5 {[%clk 0:02:37.9]} 14. c3 {[%clk 0:02:57]}
14... Bxd2 {[%clk 0:02:37.4]} 15. Qxd2 {[%clk 0:02:57.3]} 15... bxc3 {[%clk
0:02:31.8]} 16. Qxc3 {[%clk 0:02:56.8]} 16... Nd7 {[%clk 0:02:26.4]} 17. Rfc1
{[%clk 0:02:54.8]} 17... Nf6 {[%clk 0:02:08.4]} 18. Qc7 {[%clk 0:02:34.2]} 18...
Bf5 {[%clk 0:02:05.5]} 19. Nd2 {[%clk 0:02:16.1]} 19... Bd3 {[%clk 0:02:03]} 20.
Ra3 {[%clk 0:02:12.8]} 20... Ba6 {[%clk 0:01:55.3]} 21. Rb3 {[%clk 0:01:53.5]}
21... Rc8 {[%clk 0:01:54.9]} 0-1

[Event "Late-Titled-Tuesday-Blitz-February-20-2024"]
[Site "Chess.com"]
[Date "2024.02.20"]
[Round "8"]
[White "BardArtem"]
[Black "Pelusiansky"]
[Result "1-0"]
[WhiteElo "2777"]
[BlackElo "2571"]
[TimeControl "180+1"]
[EndTime "15:25:19 PST"]
[Termination "BardArtem won by resignation"]

1. e4 {[%clk 0:03:00.9]} 1... c6 {[%clk 0:02:59.9]} 2. d4 {[%clk 0:03:00.3]}
2... d5 {[%clk 0:03:00.4]} 3. exd5 {[%clk 0:03:01.2]} 3... cxd5 {[%clk
0:03:00.8]} 4. Bd3 {[%clk 0:03:01.7]} 4... Nc6 {[%clk 0:03:00.6]} 5. c3 {[%clk
0:03:02]} 5... Nf6 {[%clk 0:03:00]} 6. h3 {[%clk 0:03:02.5]} 6... e6 {[%clk
0:02:49.5]} 7. Bf4 {[%clk 0:03:00.9]} 7... Bd6 {[%clk 0:02:48.3]} 8. Bxd6 {[%clk
0:03:01.1]} 8... Qxd6 {[%clk 0:02:49.2]} 9. Nf3 {[%clk 0:03:02]} 9... O-O {[%clk
0:02:47.6]} 10. O-O {[%clk 0:03:02.5]} 10... Ne4 {[%clk 0:02:43.8]} 11. Nbd2
{[%clk 0:03:00.7]} 11... f5 {[%clk 0:02:44]} 12. Re1 {[%clk 0:03:01]} 12... Bd7
{[%clk 0:02:44.2]} 13. Bb5 {[%clk 0:02:55.8]} 13... Ne7 {[%clk 0:02:25.8]} 14.
Bxd7 {[%clk 0:02:52.7]} 14... Qxd7 {[%clk 0:02:26.7]} 15. Ne5 {[%clk 0:02:52.8]}
15... Qc7 {[%clk 0:02:26.7]} 16. f3 {[%clk 0:02:52.7]} 16... Ng3 {[%clk
0:02:19.5]} 17. Nf1 {[%clk 0:02:51.1]} 17... Nh5 {[%clk 0:02:02.7]} 18. Qd2
{[%clk 0:02:46.7]} 18... f4 {[%clk 0:01:56.1]} 19. Nd3 {[%clk 0:02:42.9]} 19...
Rf6 {[%clk 0:01:46.5]} 20. Re5 {[%clk 0:02:40.4]} 20... g6 {[%clk 0:01:43.8]}
21. Rae1 {[%clk 0:02:39.4]} 21... Ng7 {[%clk 0:01:41.8]} 22. Nxf4 {[%clk
0:02:33.5]} 22... Qd6 {[%clk 0:01:18.6]} 23. Nd3 {[%clk 0:02:31.1]} 23... b6
{[%clk 0:01:13.2]} 24. Ne3 {[%clk 0:02:27.6]} 24... h5 {[%clk 0:01:03.2]} 25.
Nc2 {[%clk 0:02:20.7]} 25... Ngf5 {[%clk 0:00:56.2]} 26. Qg5 {[%clk 0:02:19.6]}
26... Kg7 {[%clk 0:00:52.3]} 27. Nf4 {[%clk 0:02:19.6]} 27... Nc6 {[%clk
0:00:24.2]} 28. Nxh5+ {[%clk 0:02:14.6]} 1-0

[Event "Late-Titled-Tuesday-Blitz-February-20-2024"]
[Site "Chess.com"]
[Date "2024.02.20"]
[Round "8"]
[White "Mikasinski"]
[Black "Zkid"]
[Result "0-1"]
[WhiteElo "2680"]
[BlackElo "2931"]
[TimeControl "180+1"]
[EndTime "15:25:40 PST"]
[Termination "Zkid won by resignation"]

1. e4 {[%clk 0:03:00.9]} 1... c5 {[%clk 0:02:59.7]} 2. Nf3 {[%clk 0:03:00.4]}
2... d6 {[%clk 0:03:00.1]} 3. d4 {[%clk 0:03:00.8]} 3... cxd4 {[%clk 0:03:01]}
4. Nxd4 {[%clk 0:03:01.5]} 4... Nf6 {[%clk 0:03:01.8]} 5. Nc3 {[%clk 0:03:02]}
5... Nc6 {[%clk 0:03:02.4]} 6. Be2 {[%clk 0:03:00.7]} 6... g6 {[%clk 0:03:01.9]}
7. O-O {[%clk 0:03:01]} 7... Bg7 {[%clk 0:03:02.5]} 8. Be3 {[%clk 0:03:01.2]}
8... O-O {[%clk 0:03:02.6]} 9. f4 {[%clk 0:03:00.8]} 9... Ng4 {[%clk 0:02:54.5]}
10. Bxg4 {[%clk 0:02:58.3]} 10... Bxg4 {[%clk 0:02:55.4]} 11. Qxg4 {[%clk
0:02:57.7]} 11... Nxd4 {[%clk 0:02:55.7]} 12. Qd1 {[%clk 0:02:58.4]} 12... Nc6
{[%clk 0:02:55.3]} 13. Qd2 {[%clk 0:02:57.6]} 13... Qa5 {[%clk 0:02:55.1]} 14.
Kh1 {[%clk 0:02:46.2]} 14... Rac8 {[%clk 0:02:54.5]} 15. Rf3 {[%clk 0:02:31.4]}
15... f5 {[%clk 0:02:46.4]} 16. exf5 {[%clk 0:02:25.3]} 16... Qxf5 {[%clk
0:02:44.5]} 17. Re1 {[%clk 0:02:21.2]} 17... Nb4 {[%clk 0:02:37.7]} 18. Bxa7
{[%clk 0:02:17.7]} 18... Rfe8 {[%clk 0:02:28.7]} 19. Ne4 {[%clk 0:02:05.9]}
19... Nxc2 {[%clk 0:02:24.4]} 20. Nxd6 {[%clk 0:01:59.8]} 20... exd6 {[%clk
0:02:17.9]} 21. Rxe8+ {[%clk 0:01:59.5]} 21... Rxe8 {[%clk 0:02:18.7]} 22. h3
{[%clk 0:01:57.1]} 22... Qe4 {[%clk 0:02:07.5]} 23. Kh2 {[%clk 0:01:54.5]} 23...
Nd4 {[%clk 0:01:59.5]} 24. Rf1 {[%clk 0:01:52.4]} 24... Qe2 {[%clk 0:01:51.1]}
25. Qc1 {[%clk 0:01:50.4]} 25... Nf5 {[%clk 0:01:47.7]} 26. Rf2 {[%clk
0:01:49.3]} 26... Qd3 {[%clk 0:01:47.9]} 27. Rf3 {[%clk 0:01:35.9]} 27... Qd5
{[%clk 0:01:45.6]} 28. b3 {[%clk 0:01:31.6]} 28... h5 {[%clk 0:01:39.7]} 29. Bf2
{[%clk 0:01:28.6]} 29... Re2 {[%clk 0:01:35.3]} 30. a4 {[%clk 0:01:23.9]} 30...
Nd4 {[%clk 0:01:24.6]} 31. Bxd4 {[%clk 0:01:01]} 31... Qxf3 {[%clk 0:01:22.4]}
0-1

[Event "Late-Titled-Tuesday-Blitz-February-20-2024"]
[Site "Chess.com"]
[Date "2024.02.20"]
[Round "8"]
[White "Capablanca_Oujda_2021"]
[Black "karinachess1"]
[Result "0-1"]
[WhiteElo "2506"]
[BlackElo "2661"]
[TimeControl "180+1"]
[EndTime "15:26:04 PST"]
[Termination "karinachess1 won by resignation"]

1. e4 {[%clk 0:02:59.8]} 1... e5 {[%clk 0:03:00.2]} 2. Nf3 {[%clk 0:02:59.7]}
2... Nc6 {[%clk 0:03:00.5]} 3. Bc4 {[%clk 0:02:59.5]} 3... Nf6 {[%clk
0:03:00.6]} 4. Ng5 {[%clk 0:02:59.4]} 4... d5 {[%clk 0:03:00.3]} 5. exd5 {[%clk
0:03:00.3]} 5... Na5 {[%clk 0:03:00.7]} 6. Bb5+ {[%clk 0:03:00.1]} 6... c6
{[%clk 0:03:01.3]} 7. dxc6 {[%clk 0:03:01]} 7... bxc6 {[%clk 0:03:02.2]} 8. Qf3
{[%clk 0:03:01.1]} 8... cxb5 {[%clk 0:02:56.4]} 9. Qxa8 {[%clk 0:03:00.3]} 9...
Be7 {[%clk 0:02:57]} 10. d3 {[%clk 0:02:46.4]} 10... O-O {[%clk 0:02:55]} 11.
Qf3 {[%clk 0:02:44.6]} 11... Bb7 {[%clk 0:02:46.8]} 12. Qe2 {[%clk 0:02:36.9]}
12... Bxg2 {[%clk 0:02:25.7]} 13. Rg1 {[%clk 0:02:35.4]} 13... Bb7 {[%clk
0:02:22.7]} 14. Nc3 {[%clk 0:02:28.6]} 14... Nc6 {[%clk 0:02:18.4]} 15. Be3
{[%clk 0:02:21.4]} 15... Nd4 {[%clk 0:02:15.3]} 16. Bxd4 {[%clk 0:02:20.9]}
16... exd4 {[%clk 0:02:16.2]} 17. Nce4 {[%clk 0:02:21.2]} 17... Nxe4 {[%clk
0:01:55.9]} 18. Nxe4 {[%clk 0:02:16.1]} 18... Bb4+ {[%clk 0:01:52]} 19. c3
{[%clk 0:01:46.7]} 19... dxc3 {[%clk 0:01:42.7]} 20. bxc3 {[%clk 0:01:47.6]}
20... Bxe4 {[%clk 0:01:38.6]} 21. cxb4 {[%clk 0:01:40.7]} 21... Bxd3 {[%clk
0:01:35.2]} 22. Qe5 {[%clk 0:01:21.4]} 22... Re8 {[%clk 0:01:27.6]} 23. Qxe8+
{[%clk 0:00:14.6]} 23... Qxe8+ {[%clk 0:01:26.6]} 0-1